[Event "*** Titled Tuesday Blitz"]
[Site "Chess.com"]
[Date "2019.02.05"]
[Round "2"]
[White "arctic_t00"]
[Black "PotapovaM"]
[Result "1/2-1/2"]
[WhiteElo "2376"]
[BlackElo "2439"]
[TimeControl "180+2"]
[EndTime "13:20:43 PST"]
[Termination "Game drawn by repetition"]

1. d4 {[%clk 0:02:58.1]} 1... Nf6 {[%clk 0:03:00.6]} 2. Nf3 {[%clk 0:02:59.4]}
2... e6 {[%clk 0:03:01.1]} 3. e3 {[%clk 0:02:59.5]} 3... b6 {[%clk 0:03:01.4]}
4. Bd3 {[%clk 0:02:57.2]} 4... Bb7 {[%clk 0:03:02.4]} 5. O-O {[%clk 0:02:58.1]}
5... Ne4 {[%clk 0:03:01.3]} 6. a4 {[%clk 0:02:55.2]} 6... a5 {[%clk 0:03:01.5]}
7. Nbd2 {[%clk 0:02:53.2]} 7... f5 {[%clk 0:02:58.6]} 8. c4 {[%clk 0:02:28.4]}
8... Be7 {[%clk 0:02:57.7]} 9. b3 {[%clk 0:02:29.4]} 9... O-O {[%clk 0:02:58.5]}
10. Qc2 {[%clk 0:02:30.8]} 10... Nxd2 {[%clk 0:02:33]} 11. Bxd2 {[%clk
0:02:25.3]} 11... Na6 {[%clk 0:02:33.7]} 12. Be2 {[%clk 0:02:08.2]} 12... Be4
{[%clk 0:02:20.2]} 13. Qb2 {[%clk 0:02:08]} 13... Nb4 {[%clk 0:02:17.7]} 14.
Bxb4 {[%clk 0:02:03.7]} 14... Bxb4 {[%clk 0:02:19.6]} 15. Rfd1 {[%clk
0:02:01.8]} 15... Qf6 {[%clk 0:02:18.9]} 16. Ne5 {[%clk 0:01:54]} 16... Rad8
{[%clk 0:02:14.8]} 17. f3 {[%clk 0:01:51.8]} 17... Bb7 {[%clk 0:02:12]} 18. f4
{[%clk 0:01:18.8]} 18... d6 {[%clk 0:01:38.9]} 19. Bf3 {[%clk 0:01:18.6]} 19...
Be4 {[%clk 0:01:19.8]} 20. Bxe4 {[%clk 0:01:15.2]} 20... fxe4 {[%clk 0:01:19.1]}
21. Nc6 {[%clk 0:01:16.1]} 21... Rd7 {[%clk 0:01:18.5]} 22. Qc2 {[%clk
0:01:09.2]} 22... Qf5 {[%clk 0:01:15.7]} 23. h3 {[%clk 0:00:54.9]} 23... h5
{[%clk 0:01:16]} 24. Kh2 {[%clk 0:00:52.8]} 24... h4 {[%clk 0:01:16.7]} 25. Qf2
{[%clk 0:00:51.2]} 25... Qh5 {[%clk 0:01:17.4]} 26. Qc2 {[%clk 0:00:44.7]} 26...
Qf5 {[%clk 0:01:16.4]} 27. Qf2 {[%clk 0:00:45.8]} 27... Qh5 {[%clk 0:01:16.9]}
28. Qc2 {[%clk 0:00:46]} 28... Qf5 {[%clk 0:01:15.3]} 29. Qf2 {[%clk 0:00:46.9]}
29... Qh5 {[%clk 0:01:15.9]} 30. Qc2 {[%clk 0:00:47.6]} 30... Qf5 {[%clk
0:01:16.7]} 31. Qf2 {[%clk 0:00:48]} 1/2-1/2

[Event "*** Titled Tuesday Blitz"]
[Site "Chess.com"]
[Date "2019.02.05"]
[Round "2"]
[White "vugarrasulov"]
[Black "Storne89"]
[Result "1-0"]
[WhiteElo "2855"]
[BlackElo "2573"]
[TimeControl "180+2"]
[EndTime "13:21:03 PST"]
[Termination "vugarrasulov won by resignation"]

1. e4 {[%clk 0:03:01.9]} 1... c5 {[%clk 0:02:59.1]} 2. Nf3 {[%clk 0:03:01.4]}
2... Nc6 {[%clk 0:03:00.1]} 3. d4 {[%clk 0:03:02.2]} 3... cxd4 {[%clk 0:03:01]}
4. Nxd4 {[%clk 0:03:04.1]} 4... Nf6 {[%clk 0:03:02]} 5. Nc3 {[%clk 0:03:04.8]}
5... e5 {[%clk 0:03:03.3]} 6. Ndb5 {[%clk 0:03:05.6]} 6... d6 {[%clk 0:03:04.6]}
7. Bg5 {[%clk 0:03:07.1]} 7... a6 {[%clk 0:03:05.3]} 8. Na3 {[%clk 0:03:08.5]}
8... b5 {[%clk 0:03:06.3]} 9. Nd5 {[%clk 0:03:09.5]} 9... Be7 {[%clk 0:03:07.9]}
10. Bxf6 {[%clk 0:03:10.8]} 10... Bxf6 {[%clk 0:03:08.9]} 11. c4 {[%clk
0:03:12.5]} 11... b4 {[%clk 0:03:02.5]} 12. Nc2 {[%clk 0:03:13.3]} 12... a5
{[%clk 0:03:03.9]} 13. Qf3 {[%clk 0:03:10]} 13... Bg5 {[%clk 0:02:58.4]} 14. h4
{[%clk 0:03:10.5]} 14... Bh6 {[%clk 0:02:58.1]} 15. g4 {[%clk 0:03:10.8]} 15...
f6 {[%clk 0:02:56.6]} 16. g5 {[%clk 0:03:10.8]} 16... fxg5 {[%clk 0:02:55.4]}
17. Qh5+ {[%clk 0:03:12.4]} 17... Kf8 {[%clk 0:02:50.6]} 18. Bh3 {[%clk
0:03:13.9]} 18... gxh4 {[%clk 0:02:17.1]} 19. Bxc8 {[%clk 0:03:07.2]} 19... Rxc8
{[%clk 0:02:10.7]} 20. Qf5+ {[%clk 0:03:05.9]} 20... Ke8 {[%clk 0:02:02.4]} 21.
Qe6+ {[%clk 0:03:06.3]} 21... Kf8 {[%clk 0:01:56.1]} 22. Rh3 {[%clk 0:03:07.4]}
22... Bf4 {[%clk 0:01:27.2]} 23. Rf3 {[%clk 0:02:48.9]} 23... g5 {[%clk
0:01:23.1]} 24. Nxf4 {[%clk 0:02:04.8]} 24... exf4 {[%clk 0:01:16.8]} 25. O-O-O
{[%clk 0:02:05.8]} 25... Ne7 {[%clk 0:00:07.2]} 26. Rxd6 {[%clk 0:02:02.4]}
26... Qe8 {[%clk 0:00:03.9]} 27. Qf6+ {[%clk 0:01:55.3]} 27... Kg8 {[%clk
0:00:04.7]} 28. Qxg5+ {[%clk 0:01:48.9]} 28... Ng6 {[%clk 0:00:05.3]} 29. Rxf4
{[%clk 0:01:41]} 29... Rc7 {[%clk 0:00:05.3]} 30. Rd8 {[%clk 0:01:34.7]} 1-0

[Event "*** Titled Tuesday Blitz"]
[Site "Chess.com"]
[Date "2019.02.05"]
[Round "2"]
[White "AliKa2810"]
[Black "jeetjain"]
[Result "1-0"]
[WhiteElo "2467"]
[BlackElo "2345"]
[TimeControl "180+2"]
[EndTime "13:21:03 PST"]
[Termination "AliKa2810 won by resignation"]

1. e4 {[%clk 0:03:01.9]} 1... e5 {[%clk 0:03:00.4]} 2. Nf3 {[%clk 0:03:02.5]}
2... Nc6 {[%clk 0:03:01.7]} 3. d4 {[%clk 0:03:01.9]} 3... exd4 {[%clk
0:03:02.6]} 4. Nxd4 {[%clk 0:03:03.5]} 4... Bc5 {[%clk 0:03:03.8]} 5. Nb3 {[%clk
0:03:03.9]} 5... Bb6 {[%clk 0:03:04.6]} 6. Nc3 {[%clk 0:03:05]} 6... Nf6 {[%clk
0:03:02.3]} 7. Qe2 {[%clk 0:03:06.5]} 7... a5 {[%clk 0:03:03.2]} 8. a4 {[%clk
0:03:04.1]} 8... O-O {[%clk 0:02:52.2]} 9. Be3 {[%clk 0:03:04]} 9... Bxe3 {[%clk
0:02:49]} 10. Qxe3 {[%clk 0:03:04.8]} 10... d6 {[%clk 0:02:50.4]} 11. O-O-O
{[%clk 0:03:04.5]} 11... Be6 {[%clk 0:02:43.6]} 12. Nd4 {[%clk 0:03:00.9]} 12...
Nxd4 {[%clk 0:02:38]} 13. Qxd4 {[%clk 0:03:01.7]} 13... Nd7 {[%clk 0:02:35.1]}
14. f4 {[%clk 0:02:58.5]} 14... f5 {[%clk 0:02:21.7]} 15. Bc4 {[%clk 0:02:57.7]}
15... Bxc4 {[%clk 0:02:18.9]} 16. Qxc4+ {[%clk 0:02:58.7]} 16... Kh8 {[%clk
0:02:20.5]} 17. Rhe1 {[%clk 0:02:45]} 17... fxe4 {[%clk 0:02:18.9]} 18. Nxe4
{[%clk 0:02:31.6]} 18... Nb6 {[%clk 0:02:12.2]} 19. Qb5 {[%clk 0:02:13.1]} 19...
Rxf4 {[%clk 0:02:09.8]} 20. Qh5 {[%clk 0:01:38.4]} 20... Qe8 {[%clk 0:01:57.3]}
21. Qxe8+ {[%clk 0:01:36.2]} 21... Rxe8 {[%clk 0:01:59.2]} 22. Nxd6 {[%clk
0:01:34.7]} 22... Rxe1 {[%clk 0:01:56.9]} 23. Rxe1 {[%clk 0:01:35.6]} 23... h6
{[%clk 0:01:56.2]} 24. Nxb7 {[%clk 0:01:36.9]} 24... Nxa4 {[%clk 0:01:54.4]} 25.
Nxa5 {[%clk 0:01:32.2]} 25... Rf2 {[%clk 0:01:51.8]} 26. Re7 {[%clk 0:01:18.4]}
26... Rxg2 {[%clk 0:01:42.7]} 27. Rxc7 {[%clk 0:01:19.9]} 27... Rxh2 {[%clk
0:01:44.1]} 28. b3 {[%clk 0:01:20.8]} 28... Nb6 {[%clk 0:01:43.2]} 29. c4 {[%clk
0:01:20.7]} 29... h5 {[%clk 0:01:44.2]} 30. c5 {[%clk 0:01:21.7]} 30... Nd5
{[%clk 0:01:45]} 31. Rd7 {[%clk 0:01:21.1]} 31... Nb4 {[%clk 0:01:40.8]} 32. c6
{[%clk 0:01:19]} 32... Rc2+ {[%clk 0:01:40.4]} 33. Kd1 {[%clk 0:01:18.4]} 33...
Rc5 {[%clk 0:01:34]} 34. c7 {[%clk 0:01:15.1]} 34... Kh7 {[%clk 0:01:35.2]} 35.
Nb7 {[%clk 0:01:14.5]} 35... Rc6 {[%clk 0:01:30.6]} 36. Nd6 {[%clk 0:01:13.8]}
36... h4 {[%clk 0:01:14.3]} 37. c8=Q {[%clk 0:01:14]} 37... Rxc8 {[%clk
0:01:12.4]} 38. Nxc8 {[%clk 0:01:15.6]} 38... h3 {[%clk 0:01:13.9]} 39. Ke2
{[%clk 0:01:16.9]} 39... Kh6 {[%clk 0:01:10]} 40. Kf3 {[%clk 0:01:16.9]} 40...
g5 {[%clk 0:01:10.7]} 41. Kg3 {[%clk 0:01:17.7]} 1-0

[Event "*** Titled Tuesday Blitz"]
[Site "Chess.com"]
[Date "2019.02.05"]
[Round "2"]
[White "Supernotar"]
[Black "AndrBaryshpolets"]
[Result "1-0"]
[WhiteElo "2482"]
[BlackElo "2601"]
[TimeControl "180+2"]
[EndTime "13:21:04 PST"]
[Termination "Supernotar won by resignation"]

1. d4 {[%clk 0:03:00.8]} 1... d5 {[%clk 0:02:57]} 2. c4 {[%clk 0:03:01.8]} 2...
e6 {[%clk 0:02:58.6]} 3. Nf3 {[%clk 0:03:02.5]} 3... Nf6 {[%clk 0:02:59.5]} 4.
e3 {[%clk 0:03:04]} 4... c6 {[%clk 0:02:58.6]} 5. Nbd2 {[%clk 0:03:04.5]} 5...
Nbd7 {[%clk 0:02:43.1]} 6. Bd3 {[%clk 0:03:03.3]} 6... Bd6 {[%clk 0:02:44.3]} 7.
O-O {[%clk 0:03:03.8]} 7... O-O {[%clk 0:02:45.6]} 8. e4 {[%clk 0:03:05.2]} 8...
e5 {[%clk 0:02:47.2]} 9. cxd5 {[%clk 0:03:06]} 9... cxd5 {[%clk 0:02:48.9]} 10.
exd5 {[%clk 0:03:07.5]} 10... exd4 {[%clk 0:02:46.3]} 11. Ne4 {[%clk 0:03:08.4]}
11... Nxe4 {[%clk 0:02:44.9]} 12. Bxe4 {[%clk 0:03:09.6]} 12... h6 {[%clk
0:02:43.6]} 13. Nxd4 {[%clk 0:03:03.8]} 13... Bxh2+ {[%clk 0:02:02.6]} 14. Kxh2
{[%clk 0:03:04.5]} 14... Qh4+ {[%clk 0:02:04.3]} 15. Kg1 {[%clk 0:03:05.7]}
15... Qxe4 {[%clk 0:02:06.2]} 16. Nb3 {[%clk 0:02:55.8]} 16... Nf6 {[%clk
0:02:03.1]} 17. d6 {[%clk 0:02:56.1]} 17... b6 {[%clk 0:01:59.1]} 18. Re1 {[%clk
0:02:55.5]} 18... Qc6 {[%clk 0:01:23.2]} 19. Bf4 {[%clk 0:02:51]} 19... Bb7
{[%clk 0:01:20.6]} 20. f3 {[%clk 0:02:52.1]} 20... Nd5 {[%clk 0:01:18.7]} 21.
Bg3 {[%clk 0:02:50.8]} 21... Rfe8 {[%clk 0:01:19.6]} 22. Qd2 {[%clk 0:02:45.5]}
22... Qd7 {[%clk 0:01:11.9]} 23. Rxe8+ {[%clk 0:02:43.7]} 23... Rxe8 {[%clk
0:01:12.3]} 24. Re1 {[%clk 0:02:44.7]} 24... f6 {[%clk 0:00:54.6]} 25. Nd4
{[%clk 0:02:40.8]} 25... Kf7 {[%clk 0:00:52.9]} 26. Kf2 {[%clk 0:02:30.4]} 26...
Rxe1 {[%clk 0:00:41.6]} 27. Qxe1 {[%clk 0:02:30.8]} 27... h5 {[%clk 0:00:33.8]}
28. Qe4 {[%clk 0:02:13]} 28... g6 {[%clk 0:00:30]} 29. Bh2 {[%clk 0:01:57.4]}
29... a5 {[%clk 0:00:26.5]} 30. a3 {[%clk 0:01:53.6]} 30... Ba8 {[%clk
0:00:18.7]} 31. g4 {[%clk 0:01:38.7]} 31... hxg4 {[%clk 0:00:16.9]} 32. fxg4
{[%clk 0:01:40]} 32... Bb7 {[%clk 0:00:15.9]} 33. Bg3 {[%clk 0:01:39.7]} 33...
Nc7 {[%clk 0:00:08.9]} 34. Qxb7 {[%clk 0:01:38.1]} 1-0

[Event "*** Titled Tuesday Blitz"]
[Site "Chess.com"]
[Date "2019.02.05"]
[Round "2"]
[White "Supelyel"]
[Black "Kirill_Klukin"]
[Result "0-1"]
[WhiteElo "2330"]
[BlackElo "2629"]
[TimeControl "180+2"]
[EndTime "13:21:07 PST"]
[Termination "Kirill_Klukin won by resignation"]

1. c4 {[%clk 0:03:01.9]} 1... Nf6 {[%clk 0:03:00.2]} 2. Nf3 {[%clk 0:03:01.7]}
2... Nc6 {[%clk 0:03:00.8]} 3. g3 {[%clk 0:03:01.1]} 3... e6 {[%clk 0:02:59.9]}
4. Bg2 {[%clk 0:03:01.2]} 4... g6 {[%clk 0:02:59.3]} 5. O-O {[%clk 0:03:01.6]}
5... Bg7 {[%clk 0:03:00.8]} 6. Nc3 {[%clk 0:02:59.5]} 6... O-O {[%clk
0:03:01.9]} 7. b3 {[%clk 0:02:58.2]} 7... d5 {[%clk 0:03:01.6]} 8. cxd5 {[%clk
0:02:47.6]} 8... exd5 {[%clk 0:03:02.6]} 9. Bb2 {[%clk 0:02:47.4]} 9... Ne7
{[%clk 0:03:01.7]} 10. e3 {[%clk 0:02:35.7]} 10... c6 {[%clk 0:03:02.8]} 11. d3
{[%clk 0:02:29.8]} 11... Bf5 {[%clk 0:03:01.4]} 12. Nd4 {[%clk 0:02:27.1]} 12...
Bd7 {[%clk 0:03:02.1]} 13. b4 {[%clk 0:02:27.7]} 13... Nf5 {[%clk 0:03:00.1]}
14. Nb3 {[%clk 0:02:27.3]} 14... Nd6 {[%clk 0:02:45.8]} 15. Qc2 {[%clk
0:02:18.9]} 15... Rc8 {[%clk 0:02:45.6]} 16. Nc5 {[%clk 0:02:18.3]} 16... Bf5
{[%clk 0:02:41.6]} 17. e4 {[%clk 0:02:12.5]} 17... dxe4 {[%clk 0:02:31.1]} 18.
dxe4 {[%clk 0:02:14.4]} 18... b6 {[%clk 0:02:07.4]} 19. exf5 {[%clk 0:01:29.6]}
19... bxc5 {[%clk 0:02:07.7]} 20. fxg6 {[%clk 0:01:30.5]} 20... hxg6 {[%clk
0:02:08.8]} 21. bxc5 {[%clk 0:01:31.4]} 21... Nc4 {[%clk 0:02:10.2]} 22. Rad1
{[%clk 0:01:19.4]} 22... Qa5 {[%clk 0:02:09]} 23. Ba1 {[%clk 0:01:17.5]} 23...
Na3 {[%clk 0:01:47.6]} 24. Qa4 {[%clk 0:01:05.9]} 24... Qxc5 {[%clk 0:01:34.3]}
25. Ne4 {[%clk 0:00:41.1]} 25... Nxe4 {[%clk 0:01:32.3]} 26. Bxe4 {[%clk
0:00:31.9]} 26... Nb5 {[%clk 0:01:30.3]} 27. Rc1 {[%clk 0:00:26]} 27... Qb6
{[%clk 0:01:27.6]} 28. Bxg7 {[%clk 0:00:23.4]} 28... Kxg7 {[%clk 0:01:28.6]} 29.
Qc4 {[%clk 0:00:21.7]} 29... Rfd8 {[%clk 0:01:20.3]} 30. Bxc6 {[%clk 0:00:21.5]}
30... Nd4 {[%clk 0:01:21.1]} 0-1

[Event "*** Titled Tuesday Blitz"]
[Site "Chess.com"]
[Date "2019.02.05"]
[Round "2"]
[White "NateSolon"]
[Black "Rakesh"]
[Result "1-0"]
[WhiteElo "2527"]
[BlackElo "2291"]
[TimeControl "180+2"]
[EndTime "13:21:10 PST"]
[Termination "NateSolon won by resignation"]

1. d4 {[%clk 0:03:01.9]} 1... Nf6 {[%clk 0:02:58.4]} 2. Bg5 {[%clk 0:03:02.3]}
2... d5 {[%clk 0:02:54.5]} 3. e3 {[%clk 0:03:02.5]} 3... c6 {[%clk 0:02:54.9]}
4. Nf3 {[%clk 0:02:58.1]} 4... Ne4 {[%clk 0:02:55.4]} 5. Bf4 {[%clk 0:02:58.9]}
5... Qb6 {[%clk 0:02:55.8]} 6. Qc1 {[%clk 0:02:58.8]} 6... Bf5 {[%clk
0:02:55.3]} 7. Nbd2 {[%clk 0:02:56]} 7... Nd7 {[%clk 0:02:56]} 8. Be2 {[%clk
0:02:51.9]} 8... Ndf6 {[%clk 0:02:55.2]} 9. O-O {[%clk 0:02:45]} 9... e6 {[%clk
0:02:53.8]} 10. c4 {[%clk 0:02:36.4]} 10... Be7 {[%clk 0:02:41.7]} 11. c5 {[%clk
0:02:33.4]} 11... Qd8 {[%clk 0:02:41.7]} 12. h3 {[%clk 0:02:27.1]} 12... Rg8
{[%clk 0:02:40.2]} 13. Bh2 {[%clk 0:02:23]} 13... g5 {[%clk 0:02:40.5]} 14. Ne5
{[%clk 0:02:19.5]} 14... h5 {[%clk 0:02:36.7]} 15. Nxe4 {[%clk 0:02:19.5]} 15...
Bxe4 {[%clk 0:02:31.1]} 16. f3 {[%clk 0:02:15.4]} 16... Bh7 {[%clk 0:02:22.7]}
17. g4 {[%clk 0:02:13.2]} 17... hxg4 {[%clk 0:02:22.7]} 18. hxg4 {[%clk
0:02:14.2]} 18... Qa5 {[%clk 0:02:16.8]} 19. a3 {[%clk 0:01:59]} 19... Qa4
{[%clk 0:02:09.6]} 20. b4 {[%clk 0:01:55.7]} 20... Nd7 {[%clk 0:02:00]} 21. Kg2
{[%clk 0:01:35.5]} 21... Nxe5 {[%clk 0:01:57.4]} 22. Bxe5 {[%clk 0:01:37.4]}
22... Kd7 {[%clk 0:01:50.9]} 23. Rh1 {[%clk 0:01:38]} 23... Bg6 {[%clk
0:01:49.7]} 24. Qb2 {[%clk 0:01:35.1]} 24... f6 {[%clk 0:01:48.5]} 25. Bg3
{[%clk 0:01:36.3]} 25... Qc2 {[%clk 0:01:44.5]} 26. Qxc2 {[%clk 0:01:31.6]}
26... Bxc2 {[%clk 0:01:46.4]} 27. b5 {[%clk 0:01:33.5]} 27... Rh8 {[%clk
0:01:30.7]} 28. Rhc1 {[%clk 0:01:32.1]} 28... Ba4 {[%clk 0:01:29.3]} 29. Rab1
{[%clk 0:01:31.6]} 29... Bxb5 {[%clk 0:01:24.1]} 30. Bxb5 {[%clk 0:01:30.6]}
30... cxb5 {[%clk 0:01:25.3]} 31. Rxb5 {[%clk 0:01:32.5]} 31... Kc6 {[%clk
0:01:25]} 32. Rcb1 {[%clk 0:01:33.7]} 32... Rab8 {[%clk 0:00:44.7]} 33. Bxb8
{[%clk 0:01:33.2]} 33... Rxb8 {[%clk 0:00:46.6]} 34. a4 {[%clk 0:01:28.8]} 34...
e5 {[%clk 0:00:43.1]} 35. Rh1 {[%clk 0:01:28.9]} 35... b6 {[%clk 0:00:40.2]} 36.
Rh7 {[%clk 0:01:28.5]} 36... Bf8 {[%clk 0:00:40.4]} 37. Rxa7 {[%clk 0:01:28]}
37... exd4 {[%clk 0:00:39.7]} 38. exd4 {[%clk 0:01:28.6]} 38... bxc5 {[%clk
0:00:37.9]} 39. Rxb8 {[%clk 0:01:28.4]} 1-0

[Event "*** Titled Tuesday Blitz"]
[Site "Chess.com"]
[Date "2019.02.05"]
[Round "2"]
[White "justantan"]
[Black "GukeshDommaraju"]
[Result "0-1"]
[WhiteElo "2696"]
[BlackElo "2694"]
[TimeControl "180+2"]
[EndTime "13:21:11 PST"]
[Termination "GukeshDommaraju won by resignation"]

1. e4 {[%clk 0:03:01.9]} 1... c5 {[%clk 0:02:58.9]} 2. Nf3 {[%clk 0:03:02.6]}
2... Nc6 {[%clk 0:02:59.6]} 3. Bb5 {[%clk 0:02:59.9]} 3... g6 {[%clk 0:02:57.3]}
4. Bxc6 {[%clk 0:03:00.2]} 4... dxc6 {[%clk 0:02:57.8]} 5. d3 {[%clk 0:03:01.1]}
5... Bg7 {[%clk 0:02:57.4]} 6. h3 {[%clk 0:03:02.1]} 6... Nf6 {[%clk 0:02:58.8]}
7. Nc3 {[%clk 0:03:03]} 7... Nd7 {[%clk 0:03:00]} 8. Be3 {[%clk 0:03:03.7]} 8...
e5 {[%clk 0:03:01]} 9. O-O {[%clk 0:03:03.6]} 9... b6 {[%clk 0:02:58.7]} 10. Qd2
{[%clk 0:03:04.3]} 10... h6 {[%clk 0:02:52.1]} 11. Rae1 {[%clk 0:02:58.8]} 11...
Nf8 {[%clk 0:02:51.1]} 12. Nh2 {[%clk 0:02:56.6]} 12... Ne6 {[%clk 0:02:52]} 13.
Ne2 {[%clk 0:02:50.6]} 13... Nd4 {[%clk 0:02:35.5]} 14. f4 {[%clk 0:02:31.5]}
14... Nxe2+ {[%clk 0:02:30]} 15. Rxe2 {[%clk 0:02:32.6]} 15... exf4 {[%clk
0:02:28.1]} 16. Bxf4 {[%clk 0:02:33.2]} 16... Be6 {[%clk 0:02:26]} 17. b3 {[%clk
0:02:29.6]} 17... Qd7 {[%clk 0:02:16.9]} 18. Nf3 {[%clk 0:02:24.2]} 18... O-O-O
{[%clk 0:02:11]} 19. Kh2 {[%clk 0:02:23.7]} 19... g5 {[%clk 0:02:10.7]} 20. Bg3
{[%clk 0:02:23.8]} 20... f6 {[%clk 0:01:59.2]} 21. b4 {[%clk 0:02:11.9]} 21...
c4 {[%clk 0:01:50.8]} 22. d4 {[%clk 0:02:12.4]} 22... h5 {[%clk 0:01:48.6]} 23.
c3 {[%clk 0:02:01.3]} 23... g4 {[%clk 0:01:47.7]} 24. Qf4 {[%clk 0:01:59.9]}
24... Kb7 {[%clk 0:01:41.6]} 25. Ng1 {[%clk 0:01:31.2]} 25... h4 {[%clk
0:01:34]} 26. Be1 {[%clk 0:01:08.9]} 26... Bh6 {[%clk 0:01:26.4]} 27. Qxf6
{[%clk 0:01:09.8]} 27... Rdf8 {[%clk 0:01:04.2]} 28. Bxh4 {[%clk 0:01:10]} 28...
Rxf6 {[%clk 0:01:03.8]} 29. Bxf6 {[%clk 0:01:11.9]} 29... Rg8 {[%clk 0:01:03.7]}
30. e5 {[%clk 0:01:05.5]} 30... gxh3 {[%clk 0:01:00.6]} 31. Nxh3 {[%clk
0:01:06.6]} 31... Bxh3 {[%clk 0:01:00.9]} 32. gxh3 {[%clk 0:01:07.9]} 32... Qe6
{[%clk 0:00:56.7]} 33. Re4 {[%clk 0:01:05.1]} 33... Bd2 {[%clk 0:00:55.3]} 34.
Rf3 {[%clk 0:01:03]} 34... Qd5 {[%clk 0:00:54.3]} 0-1

[Event "*** Titled Tuesday Blitz"]
[Site "Chess.com"]
[Date "2019.02.05"]
[Round "2"]
[White "robbykevlishvili"]
[Black "JoakimVonAnd"]
[Result "1-0"]
[WhiteElo "2750"]
[BlackElo "2320"]
[TimeControl "180+2"]
[EndTime "13:21:13 PST"]
[Termination "robbykevlishvili won by resignation"]

1. e4 {[%clk 0:03:01.9]} 1... c6 {[%clk 0:02:59.9]} 2. d4 {[%clk 0:02:56]} 2...
d5 {[%clk 0:03:01.8]} 3. e5 {[%clk 0:02:55.1]} 3... Bf5 {[%clk 0:03:02.5]} 4. h4
{[%clk 0:02:55.2]} 4... h5 {[%clk 0:03:03.1]} 5. Bd3 {[%clk 0:02:55.3]} 5...
Bxd3 {[%clk 0:03:03.9]} 6. Qxd3 {[%clk 0:02:57.2]} 6... e6 {[%clk 0:03:05.3]} 7.
Bg5 {[%clk 0:02:57.5]} 7... Qa5+ {[%clk 0:03:06]} 8. Nd2 {[%clk 0:02:57.8]} 8...
Qa6 {[%clk 0:03:07.3]} 9. c4 {[%clk 0:02:58.6]} 9... Nd7 {[%clk 0:03:07.9]} 10.
Ngf3 {[%clk 0:02:59.2]} 10... Ne7 {[%clk 0:03:09]} 11. O-O {[%clk 0:02:59.7]}
11... f6 {[%clk 0:03:06.8]} 12. exf6 {[%clk 0:02:59.9]} 12... gxf6 {[%clk
0:03:08.7]} 13. Bf4 {[%clk 0:02:58.6]} 13... O-O-O {[%clk 0:03:09.6]} 14. b3
{[%clk 0:02:56.3]} 14... Bg7 {[%clk 0:02:45.2]} 15. Qe2 {[%clk 0:02:50.6]} 15...
Ng6 {[%clk 0:02:37.1]} 16. Bg3 {[%clk 0:02:49.9]} 16... e5 {[%clk 0:02:36.7]}
17. dxe5 {[%clk 0:02:51]} 17... fxe5 {[%clk 0:02:37.4]} 18. Ng5 {[%clk
0:02:51.6]} 18... Rde8 {[%clk 0:02:32.7]} 19. Nf7 {[%clk 0:02:50]} 19... e4
{[%clk 0:02:01.1]} 20. Nd6+ {[%clk 0:02:47.6]} 20... Kd8 {[%clk 0:02:01.9]} 21.
Nxe8 {[%clk 0:02:49.5]} 21... Rxe8 {[%clk 0:02:02.2]} 22. Rad1 {[%clk
0:02:41.4]} 22... Qxa2 {[%clk 0:01:51.5]} 23. Qxh5 {[%clk 0:02:37.9]} 23... Nge5
{[%clk 0:01:51]} 24. cxd5 {[%clk 0:02:37.7]} 24... cxd5 {[%clk 0:01:50.9]} 25.
Bxe5 {[%clk 0:02:05.7]} 25... Bxe5 {[%clk 0:01:49.5]} 26. Qg5+ {[%clk
0:02:03.3]} 26... Kc8 {[%clk 0:01:41.7]} 27. Qg6 {[%clk 0:02:00.2]} 27... Rh8
{[%clk 0:01:38.4]} 28. Qe6 {[%clk 0:01:43.6]} 28... Rxh4 {[%clk 0:01:23.1]} 29.
g3 {[%clk 0:01:44.7]} 29... Rh8 {[%clk 0:01:08.6]} 30. Nxe4 {[%clk 0:01:42.1]}
30... Qe2 {[%clk 0:00:56.5]} 31. Nc5 {[%clk 0:01:31]} 31... Rh7 {[%clk
0:00:15.6]} 32. Nxd7 {[%clk 0:01:24]} 32... Rxd7 {[%clk 0:00:15.5]} 33. Rxd5
{[%clk 0:01:22.5]} 1-0

[Event "*** Titled Tuesday Blitz"]
[Site "Chess.com"]
[Date "2019.02.05"]
[Round "2"]
[White "GM_shahin"]
[Black "xLuring1"]
[Result "1-0"]
[WhiteElo "2732"]
[BlackElo "2308"]
[TimeControl "180+2"]
[EndTime "13:21:16 PST"]
[Termination "GM_shahin won by checkmate"]

1. e4 {[%clk 0:03:01.6]} 1... c5 {[%clk 0:02:59.3]} 2. d4 {[%clk 0:03:01.1]}
2... cxd4 {[%clk 0:02:58.1]} 3. c3 {[%clk 0:03:02.3]} 3... dxc3 {[%clk
0:02:59.1]} 4. Nxc3 {[%clk 0:03:03.3]} 4... e6 {[%clk 0:03:00.2]} 5. Nf3 {[%clk
0:03:04.4]} 5... a6 {[%clk 0:03:01.3]} 6. Bc4 {[%clk 0:03:05.9]} 6... b5 {[%clk
0:03:02.6]} 7. Bb3 {[%clk 0:03:06.7]} 7... Bb7 {[%clk 0:03:04.2]} 8. O-O {[%clk
0:03:07.5]} 8... d6 {[%clk 0:03:04.7]} 9. Qe2 {[%clk 0:03:08.6]} 9... Nd7 {[%clk
0:03:05.6]} 10. Rd1 {[%clk 0:03:09.8]} 10... Qb8 {[%clk 0:02:56.5]} 11. Bf4
{[%clk 0:03:10.6]} 11... Ngf6 {[%clk 0:02:48.5]} 12. Nd5 {[%clk 0:03:11.5]}
12... Nxd5 {[%clk 0:02:38.9]} 13. exd5 {[%clk 0:03:12.3]} 13... e5 {[%clk
0:02:40.2]} 14. Nd4 {[%clk 0:03:04.2]} 14... g6 {[%clk 0:02:24.4]} 15. Rac1
{[%clk 0:02:59.8]} 15... Qd8 {[%clk 0:01:56.6]} 16. Nc6 {[%clk 0:02:40.4]} 16...
Qf6 {[%clk 0:01:47.3]} 17. Na5 {[%clk 0:02:29]} 17... Bc8 {[%clk 0:01:29.1]} 18.
Be3 {[%clk 0:02:27.3]} 18... Bg7 {[%clk 0:01:27.8]} 19. Rc7 {[%clk 0:02:26.6]}
19... O-O {[%clk 0:01:28.1]} 20. Rdc1 {[%clk 0:02:27.4]} 20... Kh8 {[%clk
0:01:16.8]} 21. R1c6 {[%clk 0:02:21.8]} 21... e4 {[%clk 0:00:59.8]} 22. Qc2
{[%clk 0:01:39.4]} 22... Qd8 {[%clk 0:00:36]} 23. Rxd6 {[%clk 0:01:30.8]} 23...
Be5 {[%clk 0:00:36.6]} 24. Rdc6 {[%clk 0:01:22.5]} 24... Nf6 {[%clk 0:00:21.5]}
25. d6 {[%clk 0:01:19.8]} 25... Ng4 {[%clk 0:00:21.4]} 26. Qc5 {[%clk
0:01:17.2]} 26... Bxh2+ {[%clk 0:00:19.3]} 27. Kf1 {[%clk 0:01:18.5]} 27... Qh4
{[%clk 0:00:20.2]} 28. Bd4+ {[%clk 0:01:19]} 28... f6 {[%clk 0:00:21]} 29. d7
{[%clk 0:01:19.8]} 29... Bf4 {[%clk 0:00:18.5]} 30. Qxf8# {[%clk 0:01:20.3]} 1-0